[Event "Titled Tuesday Blitz April 26 Early 2022"]
[White "Stevens, Christian"]
[Black "Prieto Aranguren, Alain"]
[WhiteFideId "2604450"]
[BlackFideId "2268906"]
[WhiteElo "2524"]
[BlackElo "2235"]
[Result "1-0"]
[Round "03"]
[TimeControl "180+1"]
[Date "2022.04.26"]
[WhiteClock "0:01:03"]
[BlackClock "0:00:57"]

1. Nf3 {[%clk 0:03:00]}  g6 {[%clk 0:02:57]} 2. c4 {[%clk 0:03:00]}  Bg7 {[%clk 0:02:56]} 3. e4 {[%clk 0:03:00]}  d6 {[%clk 0:02:55]} 4. d4 {[%clk 0:03:00]}  Nf6 {[%clk 0:02:45]} 5. Nc3 {[%clk 0:03:00]}  O-O {[%clk 0:02:45]} 6. Be2 {[%clk 0:02:59]}  e5 {[%clk 0:02:43]} 7. dxe5 {[%clk 0:03:00]}  dxe5 {[%clk 0:02:43]} 8. Qxd8 {[%clk 0:03:01]}  Rxd8 {[%clk 0:02:43]} 9. Bg5 {[%clk 0:03:02]}  Rf8 {[%clk 0:02:40]} 10. Nd5 {[%clk 0:02:56]}  Nxd5 {[%clk 0:02:39]} 11. cxd5 {[%clk 0:02:57]}  c6 {[%clk 0:02:39]} 12. Bc4 {[%clk 0:02:55]}  cxd5 {[%clk 0:02:39]} 13. Bxd5 {[%clk 0:02:55]}  Nc6 {[%clk 0:02:33]} 14. O-O-O {[%clk 0:02:53]}  Bg4 {[%clk 0:02:28]} 15. Kb1 {[%clk 0:02:15]}  Rac8 {[%clk 0:02:15]} 16. h3 {[%clk 0:01:56]}  Bxf3 {[%clk 0:02:14]} 17. gxf3 {[%clk 0:01:56]}  Nd4 {[%clk 0:02:06]} 18. Bxb7 {[%clk 0:01:39]}  Rc7 {[%clk 0:02:01]} 19. Bd5 {[%clk 0:01:38]}  Nxf3 {[%clk 0:01:59]} 20. Be3 {[%clk 0:01:38]}  Rfc8 {[%clk 0:01:48]} 21. Rc1 {[%clk 0:01:38]}  Nd4 {[%clk 0:01:39]} 22. Rxc7 {[%clk 0:01:35]}  Rxc7 {[%clk 0:01:39]} 23. Rc1 {[%clk 0:01:36]}  Rxc1+ {[%clk 0:01:33]} 24. Kxc1 {[%clk 0:01:37]}  Kf8 {[%clk 0:01:33]} 25. Kd2 {[%clk 0:01:24]}  Ke7 {[%clk 0:01:31]} 26. Kd3 {[%clk 0:01:23]}  f5 {[%clk 0:01:27]} 27. exf5 {[%clk 0:01:20]}  gxf5 {[%clk 0:01:26]} 28. f4 {[%clk 0:01:21]}  e4+ {[%clk 0:01:23]} 29. Kc4 {[%clk 0:01:16]}  Ne2 {[%clk 0:01:17]} 30. b4 {[%clk 0:01:12]}  Kd6 {[%clk 0:01:09]} 31. Bxa7 {[%clk 0:01:09]}  Kc7 {[%clk 0:00:57]} 32. b5 {[%clk 0:01:03]} 1-0


[Site "https://www.chess.com"]

[Event "Titled Tuesday Blitz April 26 Early 2022"]
[White "Tasev, Dejan"]
[Black "Popadic, Dragan"]
[WhiteFideId "936618"]
[BlackFideId "913650"]
[WhiteElo "2253"]
[BlackElo "2203"]
[Result "1-0"]
[Round "03"]
[TimeControl "180+1"]
[Date "2022.04.26"]
[WhiteClock "0:00:12"]
[BlackClock "0:00:01"]

1. e4 {[%clk 0:03:00]}  c5 {[%clk 0:02:59]} 2. Nf3 {[%clk 0:03:01]}  Nc6 {[%clk 0:02:59]} 3. Nc3 {[%clk 0:03:00]}  e5 {[%clk 0:02:58]} 4. Bc4 {[%clk 0:03:00]}  Be7 {[%clk 0:02:58]} 5. d3 {[%clk 0:03:00]}  Nf6 {[%clk 0:02:59]} 6. Nd2 {[%clk 0:03:01]}  O-O {[%clk 0:02:58]} 7. Nf1 {[%clk 0:03:01]}  d6 {[%clk 0:02:59]} 8. Ne3 {[%clk 0:03:01]}  Be6 {[%clk 0:02:58]} 9. Bb3 {[%clk 0:03:01]}  Na5 {[%clk 0:02:56]} 10. O-O {[%clk 0:03:00]}  Nxb3 {[%clk 0:02:56]} 11. axb3 {[%clk 0:03:00]}  a6 {[%clk 0:02:48]} 12. f4 {[%clk 0:02:54]}  exf4 {[%clk 0:02:46]} 13. Rxf4 {[%clk 0:02:54]}  Nd7 {[%clk 0:02:40]} 14. Ned5 {[%clk 0:02:51]}  Bf6 {[%clk 0:02:37]} 15. Nxf6+ {[%clk 0:02:45]}  Nxf6 {[%clk 0:02:36]} 16. Qf3 {[%clk 0:02:43]}  Nd7 {[%clk 0:02:35]} 17. Qg3 {[%clk 0:02:36]}  Ne5 {[%clk 0:02:33]} 18. Be3 {[%clk 0:02:31]}  Kh8 {[%clk 0:02:31]} 19. Raf1 {[%clk 0:02:30]}  Qe7 {[%clk 0:02:30]} 20. Rh4 {[%clk 0:02:21]}  Rad8 {[%clk 0:02:23]} 21. Bf4 {[%clk 0:02:09]}  f6 {[%clk 0:02:02]} 22. Be3 {[%clk 0:01:57]}  b5 {[%clk 0:01:53]} 23. Ne2 {[%clk 0:01:52]}  Bf7 {[%clk 0:01:28]} 24. Qh3 {[%clk 0:01:42]}  Bg8 {[%clk 0:01:27]} 25. Ng3 {[%clk 0:01:39]}  d5 {[%clk 0:01:13]} 26. Nf5 {[%clk 0:01:37]}  Qd7 {[%clk 0:01:12]} 27. Bxc5 {[%clk 0:01:31]}  Rfe8 {[%clk 0:01:13]} 28. d4 {[%clk 0:01:13]}  Ng6 {[%clk 0:01:12]} 29. Rh5 {[%clk 0:01:07]}  Rxe4 {[%clk 0:01:09]} 30. Qg3 {[%clk 0:00:56]}  Bf7 {[%clk 0:00:47]} 31. Qh3 {[%clk 0:00:44]}  Bg8 {[%clk 0:00:45]} 32. Qg3 {[%clk 0:00:40]}  Bf7 {[%clk 0:00:45]} 33. Nd6 {[%clk 0:00:41]}  Re2 {[%clk 0:00:36]} 34. Nxf7+ {[%clk 0:00:32]}  Qxf7 {[%clk 0:00:36]} 35. Qh3 {[%clk 0:00:29]}  h6 {[%clk 0:00:30]} 36. Rhf5 {[%clk 0:00:28]}  Rde8 {[%clk 0:00:27]} 37. R5f2 {[%clk 0:00:27]}  Rxf2 {[%clk 0:00:24]} 38. Rxf2 {[%clk 0:00:27]}  Re1+ {[%clk 0:00:24]} 39. Rf1 {[%clk 0:00:27]}  Re2 {[%clk 0:00:24]} 40. Qc8+ {[%clk 0:00:26]}  Kh7 {[%clk 0:00:23]} 41. Qxa6 {[%clk 0:00:26]}  Qe8 {[%clk 0:00:21]} 42. Qb7 {[%clk 0:00:20]}  Qe4 {[%clk 0:00:19]} 43. Rf3 {[%clk 0:00:17]}  Re1+ {[%clk 0:00:18]} 44. Kf2 {[%clk 0:00:17]}  Nh4 {[%clk 0:00:13]} 45. Bf8 {[%clk 0:00:12]}  Re2+ {[%clk 0:00:01]} 46. Kf1 {[%clk 0:00:12]} 1-0


[Site "https://www.chess.com"]

[Event "Titled Tuesday Blitz April 26 Early 2022"]
[White "Tatarinov, Dmitry"]
[Black "Avazkhonov, Alikhon"]
[WhiteFideId "24160067"]
[BlackFideId "14208504"]
[WhiteElo "2302"]
[BlackElo "1739"]
[Result "1-0"]
[Round "03"]
[TimeControl "180+1"]
[Date "2022.04.26"]
[WhiteClock "0:01:55"]
[BlackClock "0:00:04"]

1. d4 {[%clk 0:03:00]}  d5 {[%clk 0:02:56]} 2. c4 {[%clk 0:03:01]}  e6 {[%clk 0:02:56]} 3. Nf3 {[%clk 0:03:01]}  c6 {[%clk 0:02:56]} 4. e3 {[%clk 0:03:00]}  f6 {[%clk 0:02:53]} 5. Bd3 {[%clk 0:02:58]}  f5 {[%clk 0:02:54]} 6. O-O {[%clk 0:02:58]}  Nf6 {[%clk 0:02:53]} 7. Nc3 {[%clk 0:02:59]}  Bd6 {[%clk 0:02:54]} 8. b3 {[%clk 0:02:59]}  O-O {[%clk 0:02:54]} 9. Bb2 {[%clk 0:03:00]}  Ne4 {[%clk 0:02:53]} 10. Ne2 {[%clk 0:03:01]}  Rf6 {[%clk 0:02:48]} 11. Ne5 {[%clk 0:03:00]}  Rh6 {[%clk 0:02:45]} 12. g3 {[%clk 0:03:00]}  Nd7 {[%clk 0:02:38]} 13. f3 {[%clk 0:03:00]}  Nec5 {[%clk 0:02:23]} 14. Bc2 {[%clk 0:02:51]}  Bxe5 {[%clk 0:02:04]} 15. dxe5 {[%clk 0:02:49]}  Qg5 {[%clk 0:02:04]} 16. Nf4 {[%clk 0:02:46]}  Nf8 {[%clk 0:01:16]} 17. cxd5 {[%clk 0:02:42]}  exd5 {[%clk 0:01:15]} 18. b4 {[%clk 0:02:40]}  Nce6 {[%clk 0:01:12]} 19. Qd2 {[%clk 0:02:40]}  Nxf4 {[%clk 0:01:07]} 20. exf4 {[%clk 0:02:40]}  Qe7 {[%clk 0:01:03]} 21. Rae1 {[%clk 0:02:29]}  Be6 {[%clk 0:00:58]} 22. a4 {[%clk 0:02:28]}  Nd7 {[%clk 0:00:57]} 23. a5 {[%clk 0:02:27]}  a6 {[%clk 0:00:56]} 24. Bd4 {[%clk 0:02:26]}  Rf8 {[%clk 0:00:44]} 25. Qc3 {[%clk 0:02:22]}  g5 {[%clk 0:00:38]} 26. fxg5 {[%clk 0:02:20]}  Qxg5 {[%clk 0:00:39]} 27. f4 {[%clk 0:02:10]}  Qh5 {[%clk 0:00:32]} 28. Rf2 {[%clk 0:02:09]}  Kh8 {[%clk 0:00:29]} 29. Bd1 {[%clk 0:02:09]}  Qh3 {[%clk 0:00:28]} 30. Rg2 {[%clk 0:02:07]}  Rg8 {[%clk 0:00:27]} 31. Re3 {[%clk 0:02:04]}  Rhg6 {[%clk 0:00:17]} 32. g4 {[%clk 0:02:03]}  Qh4 {[%clk 0:00:14]} 33. Rh3 {[%clk 0:01:58]}  Qe7 {[%clk 0:00:10]} 34. g5 {[%clk 0:01:58]}  Qg7 {[%clk 0:00:09]} 35. Rhg3 {[%clk 0:01:57]}  h6 {[%clk 0:00:06]} 36. Bh5 {[%clk 0:01:56]}  hxg5 {[%clk 0:00:02]} 37. Bxg6 {[%clk 0:01:56]}  Qxg6 {[%clk 0:00:03]} 38. Rxg5 {[%clk 0:01:56]}  Qh7 {[%clk 0:00:03]} 39. Rxg8+ {[%clk 0:01:55]}  Bxg8 {[%clk 0:00:04]} 40. e6+ {[%clk 0:01:55]} 1-0


[Site "https://www.chess.com"]

[Event "Titled Tuesday Blitz April 26 Early 2022"]
[White "Urazayev, Arystanbek"]
[Black "Grandelius, Nils"]
[WhiteFideId "13709810"]
[BlackFideId "1710400"]
[WhiteElo "2422"]
[BlackElo "2617"]
[Result "0-1"]
[Round "03"]
[TimeControl "180+1"]
[Date "2022.04.26"]
[WhiteClock "0:00:47"]
[BlackClock "0:00:11"]

1. d4 {[%clk 0:03:00]}  d5 {[%clk 0:03:00]} 2. c4 {[%clk 0:03:01]}  e6 {[%clk 0:03:00]} 3. Nc3 {[%clk 0:03:00]}  a6 {[%clk 0:03:01]} 4. cxd5 {[%clk 0:02:59]}  exd5 {[%clk 0:03:02]} 5. Qb3 {[%clk 0:02:58]}  Nf6 {[%clk 0:02:56]} 6. Bg5 {[%clk 0:02:58]}  c5 {[%clk 0:02:55]} 7. Bxf6 {[%clk 0:02:58]}  gxf6 {[%clk 0:02:54]} 8. e3 {[%clk 0:02:58]}  Nc6 {[%clk 0:02:43]} 9. Nge2 {[%clk 0:02:58]}  Be6 {[%clk 0:02:27]} 10. g3 {[%clk 0:02:54]}  c4 {[%clk 0:01:36]} 11. Qd1 {[%clk 0:02:53]}  Nb4 {[%clk 0:01:36]} 12. Nf4 {[%clk 0:02:52]}  Bf5 {[%clk 0:01:35]} 13. Rc1 {[%clk 0:02:49]}  Bd6 {[%clk 0:01:21]} 14. Nfxd5 {[%clk 0:02:39]}  Nxd5 {[%clk 0:01:17]} 15. Nxd5 {[%clk 0:02:27]}  Be4 {[%clk 0:01:12]} 16. Bxc4 {[%clk 0:02:17]}  Bxd5 {[%clk 0:00:55]} 17. Bxd5 {[%clk 0:01:47]}  Qa5+ {[%clk 0:00:55]} 18. Ke2 {[%clk 0:01:41]}  Qxd5 {[%clk 0:00:54]} 19. b3 {[%clk 0:01:29]}  O-O {[%clk 0:00:51]} 20. Qd3 {[%clk 0:01:28]}  Rac8 {[%clk 0:00:44]} 21. Rhd1 {[%clk 0:01:22]}  Qh5+ {[%clk 0:00:43]} 22. Kf1 {[%clk 0:01:17]}  Rxc1 {[%clk 0:00:37]} 23. Rxc1 {[%clk 0:01:17]}  Qxh2 {[%clk 0:00:38]} 24. Qe4 {[%clk 0:01:16]}  Qh3+ {[%clk 0:00:38]} 25. Ke2 {[%clk 0:01:16]}  Qd7 {[%clk 0:00:23]} 26. g4 {[%clk 0:01:07]}  Re8 {[%clk 0:00:21]} 27. Qf3 {[%clk 0:01:04]}  Bf8 {[%clk 0:00:17]} 28. a4 {[%clk 0:01:01]}  Bg7 {[%clk 0:00:13]} 29. Rc5 {[%clk 0:00:58]}  Qxd4 {[%clk 0:00:12]} 30. Rh5 {[%clk 0:00:51]}  Qb2+ {[%clk 0:00:12]} 31. Kf1 {[%clk 0:00:52]}  Qb1+ {[%clk 0:00:11]} 32. Kg2 {[%clk 0:00:52]}  Qe4 {[%clk 0:00:12]} 33. Rd5 {[%clk 0:00:47]}  Qxf3+ {[%clk 0:00:11]} 34. Kxf3 {[%clk 0:00:48]}  Re6 {[%clk 0:00:10]} 35. Rd8+ {[%clk 0:00:47]}  Bf8 {[%clk 0:00:10]} 36. a5 {[%clk 0:00:47]}  Re5 {[%clk 0:00:11]} 0-1


[Site "https://www.chess.com"]

[Event "Titled Tuesday Blitz April 26 Early 2022"]
[White "Vasquez Schroeder, Rodrigo"]
[Black "Ferreira, Vitor Hugo Vieira"]
[WhiteFideId "3400042"]
[BlackFideId "2119765"]
[WhiteElo "2561"]
[BlackElo "2165"]
[Result "1-0"]
[Round "03"]
[TimeControl "180+1"]
[Date "2022.04.26"]
[WhiteClock "0:01:16"]
[BlackClock "0:00:19"]

1. e4 {[%clk 0:03:00]}  c5 {[%clk 0:02:54]} 2. Nf3 {[%clk 0:02:59]}  d6 {[%clk 0:02:54]} 3. d4 {[%clk 0:03:00]}  cxd4 {[%clk 0:02:55]} 4. Nxd4 {[%clk 0:03:01]}  Nf6 {[%clk 0:02:55]} 5. Nc3 {[%clk 0:03:01]}  a6 {[%clk 0:02:55]} 6. Bg5 {[%clk 0:03:02]}  e6 {[%clk 0:02:55]} 7. f4 {[%clk 0:03:02]}  Be7 {[%clk 0:02:56]} 8. Qf3 {[%clk 0:03:02]}  h6 {[%clk 0:02:56]} 9. Bh4 {[%clk 0:03:01]}  Qc7 {[%clk 0:02:56]} 10. O-O-O {[%clk 0:03:01]}  Nbd7 {[%clk 0:02:57]} 11. Be2 {[%clk 0:03:02]}  g5 {[%clk 0:02:57]} 12. fxg5 {[%clk 0:03:01]}  Ne5 {[%clk 0:02:56]} 13. Qe3 {[%clk 0:03:01]}  Nfg4 {[%clk 0:02:55]} 14. Bxg4 {[%clk 0:03:01]}  Nxg4 {[%clk 0:02:55]} 15. Qd2 {[%clk 0:03:02]}  hxg5 {[%clk 0:02:53]} 16. Bxg5 {[%clk 0:03:00]}  Bxg5 {[%clk 0:02:47]} 17. Qxg5 {[%clk 0:03:00]}  Ne5 {[%clk 0:02:41]} 18. Kb1 {[%clk 0:02:46]}  Bd7 {[%clk 0:02:40]} 19. Nf3 {[%clk 0:02:36]}  Nc4 {[%clk 0:02:28]} 20. Nd2 {[%clk 0:02:17]}  Ne5 {[%clk 0:02:08]} 21. h4 {[%clk 0:02:15]}  Qd8 {[%clk 0:02:03]} 22. Qg7 {[%clk 0:02:14]}  Rf8 {[%clk 0:02:03]} 23. Nf3 {[%clk 0:02:13]}  Nxf3 {[%clk 0:01:56]} 24. gxf3 {[%clk 0:02:10]}  Qb6 {[%clk 0:01:56]} 25. Qf6 {[%clk 0:02:09]}  Qd8 {[%clk 0:01:50]} 26. Qxd8+ {[%clk 0:02:02]}  Kxd8 {[%clk 0:01:50]} 27. Rxd6 {[%clk 0:02:03]}  Ke7 {[%clk 0:01:51]} 28. Rd3 {[%clk 0:02:02]}  Bc6 {[%clk 0:01:52]} 29. Ne2 {[%clk 0:02:01]}  Rh8 {[%clk 0:01:52]} 30. Nd4 {[%clk 0:02:01]}  Bd7 {[%clk 0:01:53]} 31. f4 {[%clk 0:01:58]}  Rh7 {[%clk 0:01:48]} 32. Rd2 {[%clk 0:01:55]}  Rah8 {[%clk 0:01:47]} 33. Rdh2 {[%clk 0:01:55]}  f6 {[%clk 0:01:43]} 34. Kc1 {[%clk 0:01:55]}  e5 {[%clk 0:01:44]} 35. fxe5 {[%clk 0:01:55]}  fxe5 {[%clk 0:01:44]} 36. Nf3 {[%clk 0:01:56]}  Rh5 {[%clk 0:01:39]} 37. Kd2 {[%clk 0:01:54]}  Bc6 {[%clk 0:01:36]} 38. Ke3 {[%clk 0:01:55]}  Rf8 {[%clk 0:01:35]} 39. Rh3 {[%clk 0:01:44]}  Rf4 {[%clk 0:01:33]} 40. Ng5 {[%clk 0:01:44]}  Rxg5 {[%clk 0:01:18]} 41. hxg5 {[%clk 0:01:44]}  Rxe4+ {[%clk 0:01:19]} 42. Kd3 {[%clk 0:01:41]}  Rg4 {[%clk 0:01:19]} 43. Rh7+ {[%clk 0:01:40]}  Kd6 {[%clk 0:01:19]} 44. R1h6+ {[%clk 0:01:39]}  Kc5 {[%clk 0:01:19]} 45. Rg7 {[%clk 0:01:38]}  e4+ {[%clk 0:01:12]} 46. Ke3 {[%clk 0:01:37]}  Rg3+ {[%clk 0:01:13]} 47. Kf4 {[%clk 0:01:37]}  Rf3+ {[%clk 0:01:09]} 48. Kg4 {[%clk 0:01:37]}  Rf2 {[%clk 0:01:06]} 49. Re7 {[%clk 0:01:35]}  Rxc2 {[%clk 0:01:04]} 50. g6 {[%clk 0:01:36]}  Rxb2 {[%clk 0:01:01]} 51. Rh3 {[%clk 0:01:33]}  Bd5 {[%clk 0:00:56]} 52. Kf4 {[%clk 0:01:24]}  Rf2+ {[%clk 0:00:53]} 53. Ke5 {[%clk 0:01:24]}  Rg2 {[%clk 0:00:49]} 54. g7 {[%clk 0:01:22]}  Rg5+ {[%clk 0:00:43]} 55. Kf4 {[%clk 0:01:21]}  Rg2 {[%clk 0:00:42]} 56. Rg3 {[%clk 0:01:22]}  Rxg3 {[%clk 0:00:39]} 57. Kxg3 {[%clk 0:01:22]}  Bxa2 {[%clk 0:00:40]} 58. Rxb7 {[%clk 0:01:22]}  a5 {[%clk 0:00:32]} 59. Kf4 {[%clk 0:01:21]}  Bd5 {[%clk 0:00:30]} 60. Ra7 {[%clk 0:01:19]}  Kb4 {[%clk 0:00:29]} 61. Rd7 {[%clk 0:01:17]}  Be6 {[%clk 0:00:20]} 62. Rd4+ {[%clk 0:01:16]}  Kb3 {[%clk 0:00:21]} 63. Rxe4 {[%clk 0:01:17]}  Bd5 {[%clk 0:00:19]} 64. Re5 {[%clk 0:01:17]}  Bc4 {[%clk 0:00:19]} 65. Rxa5 {[%clk 0:01:16]} 1-0


[Site "https://www.chess.com"]

[Event "Titled Tuesday Blitz April 26 Early 2022"]
[White "Winkels, Marcel"]
[Black "Toncheva, Nadya"]
[WhiteFideId "1003887"]
[BlackFideId "2924056"]
[WhiteElo "1900"]
[BlackElo "1884"]
[Result "0-1"]
[Round "03"]
[TimeControl "180+1"]
[Date "2022.04.26"]
[WhiteClock "0:00:02"]
[BlackClock "0:00:04"]

1. e4 {[%clk 0:03:00]}  Nf6 {[%clk 0:02:57]} 2. e5 {[%clk 0:03:00]}  Nd5 {[%clk 0:02:56]} 3. d4 {[%clk 0:03:00]}  b5 {[%clk 0:02:53]} 4. Bxb5 {[%clk 0:02:53]}  c5 {[%clk 0:02:53]} 5. Be2 {[%clk 0:02:39]}  e6 {[%clk 0:02:46]} 6. Nf3 {[%clk 0:02:37]}  Bb7 {[%clk 0:02:42]} 7. O-O {[%clk 0:02:36]}  Be7 {[%clk 0:02:40]} 8. c3 {[%clk 0:02:32]}  O-O {[%clk 0:02:37]} 9. Nbd2 {[%clk 0:02:25]}  d6 {[%clk 0:02:36]} 10. exd6 {[%clk 0:02:17]}  Bxd6 {[%clk 0:02:35]} 11. dxc5 {[%clk 0:02:17]}  Bxc5 {[%clk 0:02:35]} 12. Nb3 {[%clk 0:02:17]}  Bb6 {[%clk 0:02:32]} 13. c4 {[%clk 0:02:16]}  Nb4 {[%clk 0:02:27]} 14. c5 {[%clk 0:02:09]}  Bc7 {[%clk 0:02:25]} 15. Bg5 {[%clk 0:02:01]}  Qe8 {[%clk 0:02:17]} 16. a3 {[%clk 0:01:55]}  Nd5 {[%clk 0:02:15]} 17. Rc1 {[%clk 0:01:46]}  h6 {[%clk 0:02:03]} 18. Bh4 {[%clk 0:01:44]}  Nf4 {[%clk 0:01:58]} 19. Bg3 {[%clk 0:01:37]}  Qa4 {[%clk 0:01:51]} 20. Nbd4 {[%clk 0:01:26]}  Qxd1 {[%clk 0:01:27]} 21. Bxd1 {[%clk 0:01:21]}  Ba6 {[%clk 0:01:21]} 22. Re1 {[%clk 0:01:19]}  Nd3 {[%clk 0:01:18]} 23. Bxc7 {[%clk 0:01:00]}  Nxc1 {[%clk 0:01:17]} 24. Bc2 {[%clk 0:00:50]}  Nd3 {[%clk 0:01:16]} 25. Re3 {[%clk 0:00:41]}  Nxc5 {[%clk 0:00:42]} 26. Bd6 {[%clk 0:00:37]}  Rc8 {[%clk 0:00:34]} 27. Bxc5 {[%clk 0:00:35]}  Rxc5 {[%clk 0:00:32]} 28. Be4 {[%clk 0:00:33]}  Nc6 {[%clk 0:00:26]} 29. Bxc6 {[%clk 0:00:30]}  Rd8 {[%clk 0:00:23]} 30. h4 {[%clk 0:00:22]}  e5 {[%clk 0:00:23]} 31. Nf5 {[%clk 0:00:19]}  g6 {[%clk 0:00:13]} 32. Ne7+ {[%clk 0:00:16]}  Kf8 {[%clk 0:00:11]} 33. Nxe5 {[%clk 0:00:16]}  Rc1+ {[%clk 0:00:07]} 34. Kh2 {[%clk 0:00:15]}  Kxe7 {[%clk 0:00:03]} 35. Nd3+ {[%clk 0:00:14]}  Kd6 {[%clk 0:00:03]} 36. Nxc1 {[%clk 0:00:14]}  Kxc6 {[%clk 0:00:03]} 37. Rc3+ {[%clk 0:00:14]}  Kb7 {[%clk 0:00:03]} 38. Kg3 {[%clk 0:00:14]}  Bb5 {[%clk 0:00:03]} 39. Nb3 {[%clk 0:00:13]}  Bc6 {[%clk 0:00:03]} 40. Nc5+ {[%clk 0:00:13]}  Kb6 {[%clk 0:00:03]} 41. b4 {[%clk 0:00:11]}  Rd4 {[%clk 0:00:04]} 42. Nd3 {[%clk 0:00:10]}  h5 {[%clk 0:00:04]} 43. f3 {[%clk 0:00:10]}  Rd6 {[%clk 0:00:03]} 44. Nf4 {[%clk 0:00:10]}  Rf6 {[%clk 0:00:04]} 45. Nh3 {[%clk 0:00:10]}  Rd6 {[%clk 0:00:04]} 46. Ng5 {[%clk 0:00:10]}  Bd5 {[%clk 0:00:03]} 47. Rd3 {[%clk 0:00:09]}  Kc6 {[%clk 0:00:04]} 48. Rc3+ {[%clk 0:00:09]}  Kd7 {[%clk 0:00:04]} 49. Rc5 {[%clk 0:00:09]}  Be6 {[%clk 0:00:04]} 50. Ne4 {[%clk 0:00:08]}  Rd5 {[%clk 0:00:03]} 51. Rxd5+ {[%clk 0:00:08]}  Bxd5 {[%clk 0:00:04]} 52. Kf4 {[%clk 0:00:08]}  Ke6 {[%clk 0:00:03]} 53. Nc5+ {[%clk 0:00:08]}  Kd6 {[%clk 0:00:03]} 54. Ke3 {[%clk 0:00:08]}  Ba8 {[%clk 0:00:03]} 55. Kd4 {[%clk 0:00:08]}  f6 {[%clk 0:00:02]} 56. Ne4+ {[%clk 0:00:07]}  Ke6 {[%clk 0:00:02]} 57. Nc5+ {[%clk 0:00:07]}  Kd6 {[%clk 0:00:03]} 58. a4 {[%clk 0:00:07]}  g5 {[%clk 0:00:03]} 59. hxg5 {[%clk 0:00:05]}  fxg5 {[%clk 0:00:03]} 60. Nd3 {[%clk 0:00:04]}  h4 {[%clk 0:00:04]} 61. Ne1 {[%clk 0:00:04]}  Ke6 {[%clk 0:00:04]} 62. Ke3 {[%clk 0:00:03]}  Kf5 {[%clk 0:00:04]} 63. Nd3 {[%clk 0:00:03]}  g4 {[%clk 0:00:04]} 64. fxg4+ {[%clk 0:00:02]}  Kxg4 {[%clk 0:00:04]} 65. Nf2+ {[%clk 0:00:02]}  Kg3 {[%clk 0:00:04]} 0-1


[Site "https://www.chess.com"]

[Event "Titled Tuesday Blitz April 26 Early 2022"]
[White "Xiong, Jeffery"]
[Black "Aaditya Dhingra"]
[WhiteFideId "2047640"]
[BlackFideId "25678191"]
[WhiteElo "2727"]
[BlackElo "1849"]
[Result "1-0"]
[Round "03"]
[TimeControl "180+1"]
[Date "2022.04.26"]
[WhiteClock "0:02:49"]
[BlackClock "0:01:28"]

1. e4 {[%clk 0:02:58]}  e5 {[%clk 0:02:58]} 2. Nf3 {[%clk 0:02:58]}  Nc6 {[%clk 0:02:58]} 3. Nc3 {[%clk 0:02:59]}  Nf6 {[%clk 0:02:57]} 4. d4 {[%clk 0:03:00]}  exd4 {[%clk 0:02:57]} 5. Nxd4 {[%clk 0:03:00]}  Bb4 {[%clk 0:02:57]} 6. Nxc6 {[%clk 0:03:01]}  bxc6 {[%clk 0:02:57]} 7. Bd3 {[%clk 0:03:02]}  d5 {[%clk 0:02:57]} 8. exd5 {[%clk 0:03:03]}  cxd5 {[%clk 0:02:58]} 9. O-O {[%clk 0:03:03]}  O-O {[%clk 0:02:58]} 10. h3 {[%clk 0:03:04]}  c6 {[%clk 0:02:57]} 11. Qf3 {[%clk 0:03:05]}  Be6 {[%clk 0:02:56]} 12. Bf4 {[%clk 0:03:04]}  Bd6 {[%clk 0:02:56]} 13. Ne2 {[%clk 0:03:05]}  Rb8 {[%clk 0:02:54]} 14. b3 {[%clk 0:03:05]}  Re8 {[%clk 0:02:48]} 15. Rfd1 {[%clk 0:03:05]}  Qc7 {[%clk 0:02:45]} 16. c4 {[%clk 0:03:03]}  dxc4 {[%clk 0:02:39]} 17. Bxd6 {[%clk 0:03:02]}  Qxd6 {[%clk 0:02:23]} 18. Bxh7+ {[%clk 0:03:02]}  Nxh7 {[%clk 0:02:02]} 19. Rxd6 {[%clk 0:03:03]}  cxb3 {[%clk 0:01:56]} 20. axb3 {[%clk 0:03:04]}  Bd5 {[%clk 0:01:45]} 21. Rxd5 {[%clk 0:02:53]}  cxd5 {[%clk 0:01:46]} 22. Rxa7 {[%clk 0:02:52]}  Nf6 {[%clk 0:01:32]} 23. Nd4 {[%clk 0:02:49]}  Re1+ {[%clk 0:01:28]} 24. Kh2 {[%clk 0:02:49]} 1-0


[Site "https://www.chess.com"]

[Event "Titled Tuesday Blitz April 26 Early 2022"]
[White "Zhigalko, Sergei"]
[Black "Martin Carmona, Gaston Manuel"]
[WhiteFideId "13502956"]
[BlackFideId "22284567"]
[WhiteElo "2662"]
[BlackElo "2146"]
[Result "1-0"]
[Round "03"]
[TimeControl "180+1"]
[Date "2022.04.26"]
[WhiteClock "0:00:02"]
[BlackClock "0:00:02"]

1. e4 {[%clk 0:03:00]}  c5 {[%clk 0:02:59]} 2. Nf3 {[%clk 0:03:00]}  d6 {[%clk 0:02:59]} 3. d4 {[%clk 0:03:01]}  cxd4 {[%clk 0:02:59]} 4. Qxd4 {[%clk 0:03:02]}  Nc6 {[%clk 0:02:44]} 5. Bb5 {[%clk 0:03:01]}  Bd7 {[%clk 0:02:44]} 6. Bxc6 {[%clk 0:03:01]}  Bxc6 {[%clk 0:02:44]} 7. Nc3 {[%clk 0:03:01]}  Nf6 {[%clk 0:02:39]} 8. Bg5 {[%clk 0:03:01]}  e6 {[%clk 0:02:39]} 9. O-O-O {[%clk 0:03:00]}  Be7 {[%clk 0:02:37]} 10. Rhe1 {[%clk 0:03:00]}  O-O {[%clk 0:02:35]} 11. Kb1 {[%clk 0:02:59]}  h6 {[%clk 0:02:32]} 12. Bh4 {[%clk 0:02:59]}  b5 {[%clk 0:02:32]} 13. Bxf6 {[%clk 0:02:58]}  Bxf6 {[%clk 0:02:30]} 14. Qxd6 {[%clk 0:02:58]}  Qb6 {[%clk 0:02:28]} 15. Ne5 {[%clk 0:02:57]}  Bxe5 {[%clk 0:02:28]} 16. Qxe5 {[%clk 0:02:57]}  b4 {[%clk 0:02:29]} 17. Ne2 {[%clk 0:02:57]}  Qxf2 {[%clk 0:02:28]} 18. Nf4 {[%clk 0:02:40]}  Rac8 {[%clk 0:01:47]} 19. Nh5 {[%clk 0:02:28]}  f6 {[%clk 0:01:04]} 20. Qxe6+ {[%clk 0:02:23]}  Kh8 {[%clk 0:01:01]} 21. Qg4 {[%clk 0:01:32]}  Qxc2+ {[%clk 0:00:54]} 22. Ka1 {[%clk 0:01:15]}  Rc7 {[%clk 0:00:44]} 23. Nf4 {[%clk 0:00:47]}  Bxe4 {[%clk 0:00:36]} 24. Ne6 {[%clk 0:00:31]}  Bf5 {[%clk 0:00:36]} 25. Qxb4 {[%clk 0:00:18]}  Bxe6 {[%clk 0:00:14]} 26. Qxf8+ {[%clk 0:00:18]}  Kh7 {[%clk 0:00:14]} 27. Qb4 {[%clk 0:00:09]}  Bf5 {[%clk 0:00:13]} 28. Qd2 {[%clk 0:00:06]}  Qa4 {[%clk 0:00:13]} 29. Rc1 {[%clk 0:00:05]}  Rd7 {[%clk 0:00:13]} 30. Qc3 {[%clk 0:00:04]}  Bg6 {[%clk 0:00:13]} 31. g3 {[%clk 0:00:04]}  Bf7 {[%clk 0:00:13]} 32. b3 {[%clk 0:00:04]}  Qa6 {[%clk 0:00:13]} 33. Rc2 {[%clk 0:00:04]}  Bg6 {[%clk 0:00:13]} 34. Rd2 {[%clk 0:00:03]}  Rb7 {[%clk 0:00:14]} 35. Rc1 {[%clk 0:00:03]}  Bf7 {[%clk 0:00:14]} 36. Kb2 {[%clk 0:00:03]}  Qb6 {[%clk 0:00:14]} 37. Qd3+ {[%clk 0:00:03]}  Bg6 {[%clk 0:00:14]} 38. Qd4 {[%clk 0:00:03]}  Qb5 {[%clk 0:00:14]} 39. Qc3 {[%clk 0:00:03]}  a5 {[%clk 0:00:14]} 40. Qc4 {[%clk 0:00:03]}  Qb6 {[%clk 0:00:15]} 41. Qd4 {[%clk 0:00:04]}  Qb5 {[%clk 0:00:15]} 42. Ka1 {[%clk 0:00:04]}  Rb6 {[%clk 0:00:14]} 43. h4 {[%clk 0:00:04]}  h5 {[%clk 0:00:14]} 44. g4 {[%clk 0:00:04]}  hxg4 {[%clk 0:00:13]} 45. Qxg4 {[%clk 0:00:04]}  Qe5+ {[%clk 0:00:13]} 46. Qd4 {[%clk 0:00:05]}  Qe6 {[%clk 0:00:13]} 47. Rg1 {[%clk 0:00:04]}  a4 {[%clk 0:00:12]} 48. Qxa4 {[%clk 0:00:04]}  Rc6 {[%clk 0:00:10]} 49. Qd4 {[%clk 0:00:04]}  Ra6 {[%clk 0:00:08]} 50. Kb2 {[%clk 0:00:01]}  Ra5 {[%clk 0:00:06]} 51. Rdg2 {[%clk 0:00:02]}  Qa6 {[%clk 0:00:02]} 52. a4 {[%clk 0:00:02]} 1-0


[Site "https://www.chess.com"]